fUST/lending_fUST_20240901
["ID","MTS","AMOUNT","RATE_DAILY","PERIOD"]
[336793890,1725156645887,-500.0,0.00032602,31]
[336793891,1725156645897,-500.0,0.00032602,31]
[336793892,1725156645907,-411.2,0.00032602,31]
[336793893,1725156645917,-500.0,0.00032602,31]
[336793894,1725156645926,-500.0,0.00032602,31]
[336793895,1725156645936,-500.0,0.00032602,31]
[336793896,1725156645946,-500.0,0.00032602,31]
[336793897,1725156645956,-500.0,0.00032602,31]
[336793898,1725156645965,-500.0,0.00032602,31]
[336793899,1725156645974,-500.0,0.00032602,31]
[336793900,1725156645983,-500.0,0.00032602,31]
[336793901,1725156645992,-500.0,0.00032602,31]
[336793902,1725156646001,-500.0,0.00032602,31]
[336793903,1725156646010,-500.0,0.00032602,31]
[336793904,1725156646019,-500.0,0.00032602,31]
[336793905,1725156646028,-500.0,0.00032602,31]
[336793906,1725156646038,-500.0,0.00032602,31]
[336793908,1725156646047,-500.0,0.00032602,31]
[336793910,1725156646056,-500.0,0.00032602,31]
[336793911,1725156646065,-500.0,0.00032602,31]
[336793913,1725156646074,-500.0,0.00032602,31]
[336793915,1725156646083,-500.0,0.00032602,31]
[336793917,1725156646092,-500.0,0.00032602,31]
[336793918,1725156646101,-500.0,0.00032602,31]
[336793919,1725156646110,-500.0,0.00032602,31]
[336793920,1725156646119,-500.0,0.00032602,31]
[336793921,1725156646128,-500.0,0.00032602,8]
[336793922,1725156646139,-500.0,0.00032602,31]
[336793923,1725156646147,-500.0,0.00032602,31]
[336793924,1725156646159,-598.70305641,0.00032602,31]
[336793925,1725156646170,-500.0,0.00032602,31]
[336793926,1725156646182,-500.0,0.00032602,31]
[336793927,1725156646191,-500.0,0.00032602,31]
[336793928,1725156646200,-398.66213458,0.00032602,31]
[336793929,1725156646210,-500.0,0.00032602,31]
[336793930,1725156646219,-500.0,0.00032602,31]
[336793931,1725156646228,-500.0,0.00032602,31]
[336793932,1725156646238,-500.0,0.00032602,31]
[336793933,1725156646248,-500.0,0.00032602,31]
[336793934,1725156646257,-428.06209257,0.00032602,31]
[336793935,1725156646267,-341.24410546,0.00032602,31]
[336793936,1725156646276,-500.0,0.00032602,31]
[336793937,1725156646285,-500.0,0.00032602,31]
[336793938,1725156646294,-500.0,0.00032602,31]
[336793939,1725156646303,-428.8744016,0.00032602,31]
[336793940,1725156646313,-500.0,0.00032602,31]
[336793941,1725156646323,-500.0,0.00032602,31]
[336793942,1725156646332,-500.0,0.00032602,31]
[336793943,1725156646342,-500.0,0.00032602,31]
[336793944,1725156646352,-500.0,0.00032602,31]
[336793945,1725156646363,-500.0,0.00032602,31]
[336793946,1725156646373,-500.0,0.00032602,31]
[336793947,1725156646383,-500.0,0.00032602,31]
[336793948,1725156646392,-500.0,0.00032602,31]
[336793949,1725156646403,-500.0,0.00032602,31]
[336793950,1725156646413,-500.0,0.00032602,31]
[336793951,1725156646424,-236.98,0.00032602,31]
[336793952,1725156646434,-500.0,0.00032602,31]
[336793953,1725156646444,-500.0,0.00032602,31]
[336793954,1725156646455,-500.0,0.00032602,31]
[336793955,1725156646465,-500.0,0.00032602,31]
[336793956,1725156646475,-500.0,0.00032602,31]
[336793957,1725156646484,-500.0,0.00032602,31]
[336793958,1725156646493,-500.0,0.00032602,31]
[336793959,1725156646502,-500.0,0.00032602,31]
[336793960,1725156646512,-586.62208623,0.00032602,31]
[336793961,1725156646522,-500.0,0.00032602,31]
[336793962,1725156646531,-500.0,0.00032602,31]
[336793963,1725156646540,-500.0,0.00032602,31]
[336793964,1725156646550,-500.0,0.00032602,31]
[336793965,1725156646559,-500.0,0.00032602,31]
[336793966,1725156646569,-500.0,0.00032602,31]
[336793967,1725156646579,-500.0,0.00032602,31]
[336793968,1725156646591,-500.0,0.00032602,31]
[336793969,1725156646602,-500.0,0.00032602,31]
[336793970,1725156646612,-500.0,0.00032602,31]
[336793971,1725156646622,-320.51414486,0.00032602,31]
[336793976,1725156647067,-254.24783305,0.00032602,31]
[336793977,1725156647078,-451.14384202,0.00032602,31]
[336793978,1725156647090,-48.85615798,0.00032602,31]
[336793979,1725156647099,-500.0,0.00032602,31]
[336793980,1725156647110,-313.97983779,0.00032602,31]
[336793981,1725156647401,-186.02016221,0.00032602,31]
[336793982,1725156647412,-500.0,0.00032602,31]
[336793983,1725156647421,-500.0,0.00032602,31]
[336793984,1725156647430,-417.85763526,0.00032602,31]
[336793985,1725156647459,-82.14236474,0.00032602,31]
[336793986,1725156647468,-500.0,0.00032602,31]
[336793987,1725156647477,-317.59,0.00032602,31]
[336793988,1725156647486,-500.0,0.00032602,31]
[336793989,1725156647495,-500.0,0.00032602,31]
[336793990,1725156647504,-500.0,0.00032602,31]
[336793991,1725156647513,-500.0,0.00032602,31]
[336793992,1725156647522,-500.0,0.00032602,31]
[336793993,1725156647531,-188.01,0.00032602,31]
[336793994,1725156647541,-500.0,0.00032602,31]
[336793995,1725156647551,-500.0,0.00032602,31]
[336793996,1725156647560,-298.02,0.00032602,31]
[336793997,1725156647570,-500.0,0.00032602,31]
[336793998,1725156647579,-598.51462953,0.00032602,31]
[336793999,1725156647589,-500.0,0.00032602,31]
[336794000,1725156647598,-500.0,0.00032602,31]
[336794001,1725156647607,-500.0,0.00032602,31]
[336794002,1725156647617,-500.0,0.00032602,31]
[336794003,1725156647629,-500.0,0.00032602,31]
[336794004,1725156647640,-500.0,0.00032602,31]
[336794005,1725156647651,-500.0,0.00032602,31]
[336794006,1725156647663,-500.0,0.00032602,31]
[336794007,1725156647672,-605.53,0.00032602,31]
[336794008,1725156647682,-500.0,0.00032602,31]
[336794009,1725156647691,-500.0,0.00032602,31]
[336794010,1725156647701,-500.0,0.00032602,31]
[336794011,1725156647710,-500.0,0.00032602,31]
[336794012,1725156647719,-500.0,0.00032602,31]
[336794013,1725156647728,-500.0,0.00032602,31]
[336794014,1725156647737,-536.63,0.00032602,31]
[336794015,1725156647747,-500.0,0.00032602,31]
[336794016,1725156647757,-500.0,0.00032602,31]
[336794017,1725156647766,-376.20376206,0.00032602,31]
[336794018,1725156647779,-500.0,0.00032602,31]
[336794019,1725156647788,-318.33,0.00032602,31]
[336794020,1725156647798,-500.0,0.00032602,31]
[336794021,1725156647807,-500.0,0.00032602,31]
[336794022,1725156647816,-194.53342421,0.00032602,31]
[336794023,1725156647825,-500.0,0.00032602,31]
[336794024,1725156647834,-500.0,0.00032602,31]
[336794025,1725156647843,-500.0,0.00032602,31]
[336794026,1725156647853,-500.0,0.00032602,31]
[336794027,1725156647862,-500.0,0.00032602,31]
[336794028,1725156647872,-500.0,0.00032602,31]
[336794029,1725156647881,-500.0,0.00032602,31]
[336794030,1725156647890,-500.0,0.00032602,31]
[336794031,1725156647899,-503.87308445,0.00032602,2]
[336794032,1725156647909,-500.0,0.00032602,31]
[336794033,1725156647918,-500.0,0.00032602,31]
[336794034,1725156647927,-500.0,0.00032602,31]
[336794035,1725156647937,-584.48985652,0.00032602,31]
[336794036,1725156647947,-500.0,0.00032602,31]
[336794037,1725156647956,-500.0,0.00032602,31]
[336794038,1725156647966,-500.0,0.00032602,31]
[336794039,1725156647975,-500.0,0.00032602,31]
[336794040,1725156647985,-500.0,0.00032602,31]
[336794041,1725156647994,-500.0,0.00032602,31]
[336794042,1725156648003,-500.0,0.00032602,31]
[336794043,1725156648013,-201.34165161,0.00032602,31]
[336794044,1725156648022,-500.0,0.00032602,31]
[336794045,1725156648031,-336.13,0.00032602,31]
[336794046,1725156648040,-500.0,0.00032602,31]
[336794047,1725156648050,-500.0,0.00032602,31]
[336794048,1725156648060,-500.0,0.00032602,31]
[336794049,1725156648070,-500.0,0.00032602,31]
[336794050,1725156648079,-500.0,0.00032602,31]
[336794051,1725156648089,-500.0,0.00032602,31]
[336794052,1725156648098,-500.0,0.00032602,31]
[336794053,1725156648107,-500.0,0.00032602,31]
[336794054,1725156648116,-500.0,0.00032602,31]
[336794055,1725156648126,-500.0,0.00032602,31]
[336794056,1725156648136,-500.0,0.00032602,31]
[336794057,1725156648145,-500.0,0.00032602,31]
[336794058,1725156648154,-500.0,0.00032602,31]
[336794059,1725156648163,-500.0,0.00032602,31]
[336794060,1725156648174,-500.0,0.00032602,31]
[336794061,1725156648183,-500.0,0.00032602,31]
[336794062,1725156648193,-500.0,0.00032602,31]
[336794063,1725156648202,-500.0,0.00032602,31]
[336794064,1725156648211,-500.0,0.00032602,31]
[336794065,1725156648222,-500.0,0.00032602,31]
[336794066,1725156648232,-500.0,0.00032602,31]
[336794067,1725156648240,-500.0,0.00032602,31]
[336794068,1725156648250,-500.0,0.00032602,31]
[336794069,1725156648260,-500.0,0.00032602,31]
[336794070,1725156648270,-500.0,0.00032602,31]
[336794071,1725156648279,-502.49677896,0.00032602,31]
[336794072,1725156648289,-500.0,0.00032602,31]
[336794073,1725156648298,-500.0,0.00032602,31]
[336794074,1725156648308,-500.0,0.00032602,31]
[336794075,1725156648317,-500.0,0.00032602,31]
[336794076,1725156648327,-500.0,0.00032602,31]
[336794077,1725156648336,-569.72,0.00032602,31]
[336794078,1725156648346,-500.0,0.00032602,31]
[336794079,1725156648356,-500.0,0.00032602,31]
[336794080,1725156648365,-500.0,0.00032602,31]
[336794081,1725156648375,-446.48864022,0.00032602,31]
[336794082,1725156648384,-500.0,0.00032602,31]
[336794083,1725156648394,-500.0,0.00032602,31]
[336794084,1725156648403,-500.0,0.00032602,31]
[336794085,1725156648413,-474.96,0.00032602,31]
[336794086,1725156648423,-500.0,0.00032602,31]
[336794087,1725156648432,-500.0,0.00032602,31]
[336794088,1725156648441,-500.0,0.00032602,31]
[336794089,1725156648450,-500.0,0.00032602,31]
[336794090,1725156648460,-500.0,0.00032602,31]
[336794091,1725156648469,-500.0,0.00032602,31]
[336794092,1725156648478,-348.33369069,0.00032602,31]
[336794093,1725156648487,-500.0,0.00032602,31]
[336794094,1725156648496,-154.14502851,0.00032602,31]
[336794095,1725156648505,-500.0,0.00032602,31]
[336794096,1725156648514,-500.0,0.00032602,31]
[336794097,1725156648523,-500.0,0.00032602,31]
[336794098,1725156648533,-500.81189573,0.00032602,31]
[336794099,1725156648542,-500.0,0.00032602,31]
[336794100,1725156648551,-500.0,0.00032602,31]
[336794101,1725156648561,-500.0,0.00032602,31]
[336794102,1725156648570,-504.51725763,0.00032602,31]
[336794103,1725156648579,-500.0,0.00032602,31]
[336794104,1725156648588,-507.32874994,0.00032602,31]
[336794105,1725156648598,-500.0,0.00032602,31]
[336794106,1725156648607,-500.0,0.00032602,31]
[336794107,1725156648616,-506.15497251,0.00032602,31]
[336794108,1725156648626,-511.12557646,0.00032602,31]
[336794109,1725156648635,-500.0,0.00032602,31]
[336794110,1725156648645,-507.24991227,0.00032602,31]
[336794111,1725156648656,-621.77010616,0.00032602,31]
[336794112,1725156648666,-500.0,0.00032602,31]
[336794113,1725156648677,-500.0,0.00032602,31]
[336794114,1725156648686,-500.0,0.00032602,31]
[336794115,1725156648696,-500.0,0.00032602,31]
[336794116,1725156648706,-500.0,0.00032602,31]
[336794117,1725156648716,-264.40681954,0.00032602,31]
[336794118,1725156648726,-501.12514796,0.00032602,31]
[336794119,1725156648736,-512.69429421,0.00032602,31]
[336794120,1725156648745,-500.0,0.00032602,31]
[336794121,1725156648754,-230.94964686,0.00032602,31]
[336794122,1725156648764,-503.54066969,0.00032602,31]
[336794123,1725156648774,-517.41465016,0.00032602,31]
[336794124,1725156648783,-250.60896835,0.00032602,31]
[336794125,1725156648792,-501.32032176,0.00032602,31]
[336794126,1725156648802,-574.13906215,0.00032602,31]
[336794127,1725156648811,-500.0,0.00032602,7]
[336794128,1725156648821,-500.0,0.00032602,7]
[336794129,1725156648829,-500.0,0.00032602,7]
[336794130,1725156648838,-558.93751138,0.00032602,31]
[336794131,1725156648847,-636.48584769,0.00032602,7]
[336794132,1725156648857,-500.0,0.00032602,31]
[336794133,1725156648866,-500.0,0.00032602,31]
[336794134,1725156648876,-505.27264625,0.00032602,31]
[336794135,1725156648886,-502.50929048,0.00032602,31]
[336794136,1725156648895,-507.69528157,0.00032602,31]
[336794137,1725156648905,-503.24510641,0.00032602,31]
[336794138,1725156648919,-500.0,0.00032602,31]
[336794139,1725156648928,-504.4327376,0.00032602,31]
[336794140,1725156648937,-505.10475839,0.00032602,31]
[336794141,1725156648947,-535.44190833,0.00032602,8]
[336794142,1725156648957,-528.33785569,0.00032602,31]
[336794143,1725156648966,-508.11569989,0.00032602,31]
[336794144,1725156648976,-507.01600301,0.00032602,31]
[336794145,1725156648985,-505.83532706,0.00032602,31]
[336794146,1725156648995,-504.21459352,0.00032602,31]
[336794147,1725156649004,-405.50706802,0.00032602,31]
[336794148,1725156649014,-532.01962027,0.00032602,31]
[336794149,1725156649023,-510.96837914,0.00032602,31]
[336794150,1725156649033,-500.0,0.00032602,31]
[336794151,1725156649042,-500.0,0.00032602,31]
[336794152,1725156649051,-500.0,0.00032602,31]
[336794153,1725156649061,-557.16349083,0.00032602,31]
[336794154,1725156649070,-627.29880765,0.00032602,31]
[336794155,1725156649080,-503.87772769,0.00032602,31]
[336794156,1725156649089,-504.48304197,0.00032602,31]
[336794157,1725156649099,-506.21392498,0.00032602,31]
[336794158,1725156649108,-500.0,0.00032602,31]
[336794159,1725156649117,-500.0,0.00032602,31]
[336794160,1725156649126,-191.77765249,0.00032602,31]
[336794161,1725156649135,-500.0,0.00032602,31]
[336794162,1725156649145,-502.48713902,0.00032602,31]
[336794163,1725156649154,-500.0,0.00032602,31]
[336794164,1725156649166,-500.0,0.00032602,31]
[336794165,1725156649179,-500.0,0.00032602,31]
[336794166,1725156649188,-494.29466917,0.00032602,31]
[336794167,1725156649198,-194.50780936,0.00032602,31]
[336794168,1725156649208,-500.0,0.00032602,31]
[336794169,1725156649218,-506.26776332,0.00032602,31]
[336794170,1725156649227,-506.23785761,0.00032602,31]
[336794171,1725156649236,-504.54412655,0.00032602,31]
[336794172,1725156649245,-500.0,0.00032602,31]
[336794173,1725156649257,-504.03521494,0.00032602,30]
[336794174,1725156649267,-500.0,0.00032602,31]
[336794175,1725156649276,-500.0,0.00032602,31]
[336794176,1725156649287,-500.0,0.00032602,31]
[336794177,1725156649296,-405.40836687,0.00032602,31]
[336794178,1725156649305,-502.93636409,0.00032602,31]
[336794179,1725156649315,-507.59366019,0.00032602,31]
[336794180,1725156649324,-505.1586454,0.00032602,31]
[336794181,1725156649334,-613.55808051,0.00032602,31]
[336794182,1725156649343,-506.14478279,0.00032602,31]
[336794183,1725156649352,-395.68023955,0.00032602,31]
[336794184,1725156649362,-518.41561743,0.00032602,31]
[336794185,1725156649372,-507.03907832,0.00032602,31]
[336794186,1725156649382,-509.46327215,0.00032602,31]
[336794187,1725156649391,-506.79501906,0.00032602,31]
[336794188,1725156649400,-506.26546507,0.00032602,31]
[336794189,1725156649415,-503.41975749,0.00032602,31]
[336794190,1725156649431,-500.0,0.00032602,31]
[336794191,1725156649440,-500.0,0.00032602,31]
[336794192,1725156649450,-500.0,0.00032602,31]
[336794193,1725156649460,-500.0,0.00032602,31]
[336794194,1725156649470,-574.21418484,0.00032602,31]
[336794195,1725156649479,-504.53137304,0.00032602,31]
[336794196,1725156649489,-502.23469447,0.00032602,31]
[336794197,1725156649498,-542.53576119,0.00032602,31]
[336794198,1725156649507,-384.74843681,0.00032602,31]
[336794199,1725156718076,161.556814,0.00014247,2]
[336794202,1725156828316,13806.44,0.0002,2]
[336794204,1725157362293,162.706406,0.00014247,2]
[336794206,1725157372340,-724.52485616,0.00025818,12]
[336794211,1725157622232,-609.56357862,0.00025689,12]
[336794212,1725157659104,-7840.93870278,0.000298,3]
[336794213,1725157686034,-252.1817687,0.0002952,2]
[336794223,1725157709571,-250.0,0.00029951,2]
[336794224,1725157718842,-3305.5326622,0.00025204,2]
[336794229,1725157725227,-218.69903668,0.0003,7]
[336794230,1725157738585,-504.09272887,0.00028446,2]
[336794231,1725157748896,-1663.50600526,0.0002985,20]
[336794232,1725157750160,-2821.06188579,0.00028446,2]
[336794234,1725157807443,707.33934307,0.00026794,2]
[336794235,1725157808530,477.11696715,0.00028134,2]
[336794236,1725157820713,1081.9506006,0.00029098,2]
[336794312,1725157832488,-418.89313081,0.0003,2]
[336794439,1725157838532,-85.19959806,0.0003,2]
[336794441,1725157838542,-250.0,0.00030033,2]
[336794443,1725157838551,-250.0,0.00030115,2]
[336794444,1725157838561,-1813.09493602,0.00030148,22]
[336794445,1725157838572,-250.0,0.00030197,2]
[336794446,1725157838581,-250.0,0.00030279,2]
[336794447,1725157838590,-503.08745869,0.000303,2]
[336794448,1725157838599,-250.0,0.00030361,2]
[336794449,1725157838610,-250.0,0.00030443,2]
[336794450,1725157838621,-164.816459,0.00030492,2]
[336794451,1725157838631,-176.400814,0.00030492,2]
[336794452,1725157838641,-221.371459,0.00030492,2]
[336794453,1725157838652,-250.0,0.00030525,2]
[336794454,1725157838662,-400.0,0.00030573,2]
[336794455,1725157838672,-400.0,0.00030574,2]
[336794456,1725157838681,-24900.0,0.00030577,2]
[336794457,1725157838691,-250.0,0.00030608,2]
[336794458,1725157838701,-250.0,0.0003069,2]
[336794459,1725157838710,-250.0,0.00030772,2]
[336794460,1725157838720,-250.0,0.00030854,2]
[336794461,1725157838730,-250.0,0.00030936,2]
[336794462,1725157838739,-164.816459,0.00031,2]
[336794463,1725157838749,-176.400814,0.00031,2]
[336794464,1725157838758,-250.0,0.00031018,2]
[336794465,1725157838768,-250.0,0.000311,2]
[336794466,1725157838778,-250.0,0.00031183,2]
[336794467,1725157838787,-618.38875983,0.00031232,64]
[336794468,1725157838797,-250.0,0.00031265,2]
[336794469,1725157838806,-751.9316479,0.00031278,2]
[336794470,1725157838817,-250.0,0.00031347,2]
[336794471,1725157838826,-250.0,0.00031429,2]
[336794473,1725157838836,-164.816459,0.00031508,2]
[336794475,1725157838846,-176.400814,0.00031508,2]
[336794476,1725157838855,-250.0,0.00031511,2]
[336794477,1725157838868,-151.38733299,0.00031623,2]
[336794478,1725157838878,-751.93164783,0.00031656,2]
[336794479,1725157838888,-500.0,0.00031673,7]
[336794480,1725157838898,-172.304218,0.00031781,2]
[336794481,1725157838909,-1000.0,0.00032,3]
[336794482,1725157838918,-216.58036957,0.00032,120]
[336794483,1725157838928,-500.0,0.0003201,7]
[336794484,1725157838938,-500.0,0.00032011,7]
[336794485,1725157838948,-164.816459,0.00032017,2]
[336794486,1725157838958,-176.400814,0.00032017,2]
[336794487,1725157838967,-221.371459,0.00032017,2]
[336794488,1725157838977,-500.0,0.00032022,7]
[336794489,1725157838987,-751.93164783,0.00032033,2]
[336794490,1725157838996,-188.37266374,0.0003208,2]
[336794491,1725157839006,-500.0,0.0003218,7]
[336794492,1725157839016,-151.766,0.00032187,2]
[336794493,1725157839026,-526.567,0.00032187,2]
[336794494,1725157839035,-1000.0,0.00032356,2]
[336794495,1725157839045,-1000.0,0.00032409,2]
[336794496,1725157839055,-751.93164783,0.00032411,2]
[336794497,1725157839065,-1000.0,0.00032457,2]
[336794498,1725157839075,-305.15850004,0.00032465,2]
[336794499,1725157839085,-2362.77925519,0.000325,4]
[336794500,1725157839095,-1101.446,0.000325,120]
[336794501,1725157839105,-1101.447,0.000325,120]
[336794502,1725157839116,-1101.447,0.000325,120]
[336794503,1725157839125,-1101.447,0.000325,120]
[336794504,1725157839135,-1101.447,0.000325,120]
[336794505,1725157839145,-166.24919001,0.00032502,5]
[336794506,1725157839155,-376.60965607,0.00032502,2]
[336794507,1725157839164,-1000.0,0.00032502,2]
[336794508,1725157839174,-188.37266374,0.00032502,2]
[336794509,1725157839183,-1009.33484723,0.00032524,2]
[336794510,1725157839193,-1000.0,0.0003253,2]
[336794511,1725157839202,-300.0,0.00032573,2]
[336794512,1725157839212,-206.41,0.0003259,3]
[336794513,1725157839222,-13785.0760966,0.00032592,4]
[336794514,1725157839232,-1000.0,0.00032595,2]
[336794515,1725157839241,-1000.0,0.00032598,2]
[336794516,1725157839250,-500.0,0.00032599,2]
[336794517,1725157839260,-369.24933973,0.00032599,2]
[336794518,1725157839270,-500.0,0.00032599,2]
[336794519,1725157839279,-500.0,0.00032599,2]
[336794520,1725157839288,-500.0,0.00032599,2]
[336794521,1725157839298,-500.0,0.00032599,2]
[336794522,1725157839307,-500.0,0.00032599,2]
[336794523,1725157839317,-246.01892625,0.00032599,2]
[336794524,1725157839326,-500.0,0.00032599,2]
[336794525,1725157839335,-500.0,0.00032599,2]
[336794526,1725157839345,-557.10168017,0.00032599,2]
[336794527,1725157839354,-7357.81007264,0.000326,11]
[336794528,1725157839365,-150.112233,0.000326,5]
[336794529,1725157839374,-150.112233,0.000326,9]
[336794530,1725157839384,-156.964313,0.000326,7]
[336794531,1725157839393,-3000.0,0.000326,12]
[336794532,1725157839403,-150.112233,0.000326,6]
[336794533,1725157839412,-150.112233,0.000326,6]
[336794534,1725157839422,-150.112233,0.000326,5]
[336794535,1725157839431,-150.112233,0.000326,8]
[336794536,1725157839441,-150.112233,0.000326,9]
[336794537,1725157839451,-233.845174,0.000326,9]
[336794538,1725157839460,-401035.75039913,0.000326,2]
[336794539,1725157839473,-359913.27592087,0.000326,2]
[336794540,1725157839483,-1773.33851448,0.00032601,2]
[336794541,1725157839493,-2405.30774373,0.00032602,11]
[336794542,1725157839502,-39.50766822,0.00032602,31]
[336794543,1725157839511,-511.32979509,0.00032602,31]
[336794544,1725157839522,-501.26548376,0.00032602,31]
[336794545,1725157839540,-522.84483405,0.00032602,31]
[336794546,1725157839549,-500.0,0.00032602,31]
[336794547,1725157839558,-174.68443662,0.00032602,31]
[336794548,1725157839570,-533.53954117,0.00032602,31]
[336794549,1725157839581,-513.771202,0.00032602,31]
[336794550,1725157839590,-500.0,0.00032602,31]
[336794551,1725157839600,-297.27287643,0.00032602,31]
[336794552,1725157839610,-503.13778614,0.00032602,31]
[336794553,1725157839621,-500.0,0.00032602,31]
[336794554,1725157839631,-500.0,0.00032602,31]
[336794555,1725157839640,-500.0,0.00032602,31]
[336794556,1725157839650,-506.40362912,0.00032602,31]
[336794557,1725157839661,-506.49318645,0.00032602,31]
[336794558,1725157839671,-500.0,0.00032602,31]
[336794559,1725157839681,-245.73919131,0.00032602,31]
[336794560,1725157839690,-500.0,0.00032602,31]
[336794561,1725157839700,-451.02425503,0.00032602,31]
[336794562,1725157839709,-526.9385561,0.00032602,31]
[336794563,1725157839718,-500.0,0.00032602,31]
[336794564,1725157839728,-510.11850207,0.00032602,31]
[336794565,1725157839737,-500.0,0.00032602,31]
[336794566,1725157839747,-500.0,0.00032602,31]
[336794567,1725157839757,-500.0,0.00032602,31]
[336794568,1725157839767,-288.43189105,0.00032602,31]
[336794569,1725157839776,-641.68124141,0.00032602,31]
[336794570,1725157839785,-393.96137815,0.00032602,31]
[336794571,1725157839795,-250.04388547,0.00032602,31]
[336794572,1725157839804,-517.65269886,0.00032602,31]
[336794573,1725157839814,-544.92500578,0.00032602,31]
[336794574,1725157839824,-503.89901699,0.00032602,31]
[336794575,1725157839833,-527.84133432,0.00032602,31]
[336794576,1725157839843,-514.63350903,0.00032602,31]
[336794577,1725157839853,-500.0,0.00032602,31]
[336794578,1725157839865,-500.0,0.00032602,31]
[336794579,1725157839874,-500.0,0.00032602,31]
[336794580,1725157839883,-500.0,0.00032602,31]
[336794581,1725157839893,-500.0,0.00032602,31]
[336794582,1725157839903,-505.79977222,0.00032602,31]
[336794583,1725157839912,-500.0,0.00032602,31]
[336794584,1725157839921,-500.0,0.00032602,31]
[336794585,1725157839931,-500.0,0.00032602,31]
[336794586,1725157839940,-500.0,0.00032602,31]
[336794587,1725157839950,-506.8,0.00032602,31]
[336794588,1725157839960,-510.3069867,0.00032602,31]
[336794589,1725157839969,-536.3172283,0.00032602,31]
[336794590,1725157839978,-500.85973484,0.00032602,31]
[336794591,1725157839988,-563.63863622,0.00032602,31]
[336794592,1725157839997,-506.52597594,0.00032602,31]
[336794593,1725157840007,-500.0,0.00032602,31]
[336794594,1725157840018,-540.47303172,0.00032602,31]
[336794595,1725157840028,-507.21953281,0.00032602,31]
[336794596,1725157840039,-504.45782938,0.00032602,31]
[336794597,1725157840049,-510.91192905,0.00032602,31]
[336794598,1725157840059,-500.0,0.00032602,31]
[336794599,1725157840069,-598.55626869,0.00032602,31]
[336794600,1725157840079,-500.0,0.00032602,31]
[336794601,1725157840089,-500.0,0.00032602,31]
[336794602,1725157840100,-500.0,0.00032602,31]
[336794603,1725157840113,-503.9,0.00032602,31]
[336794604,1725157840124,-502.76033703,0.00032602,31]
[336794605,1725157840134,-500.0,0.00032602,31]
[336794606,1725157840144,-500.0,0.00032602,31]
[336794607,1725157840154,-325.27967278,0.00032602,31]
[336794608,1725157840163,-582.41335069,0.00032602,31]
[336794609,1725157840174,-500.0,0.00032602,31]
[336794610,1725157840183,-412.53017198,0.00032602,31]
[336794611,1725157840192,-507.49399218,0.00032602,31]
[336794612,1725157840202,-504.42668824,0.00032602,31]
[336794613,1725157840212,-509.8995712,0.00032602,31]
[336794614,1725157840221,-587.42399219,0.00032602,31]
[336794615,1725157840231,-500.0,0.00032602,31]
[336794616,1725157840240,-500.0,0.00032602,31]
[336794617,1725157840250,-500.0,0.00032602,31]
[336794618,1725157840259,-164.57361427,0.00032602,31]
[336794620,1725157840268,-500.0,0.00032602,31]
[336794622,1725157840280,-500.0,0.00032602,31]
[336794624,1725157840290,-176.78989384,0.00032602,31]
[336794626,1725157840300,-503.37921185,0.00032602,31]
[336794628,1725157840310,-515.53860794,0.00032602,31]
[336794630,1725157840319,-504.98489087,0.00032602,31]
[336794632,1725157840329,-513.96605803,0.00032602,31]